[Event "Titled Tuesday Blitz March 21 Late 2023"]
[White "Forgacs, Attila Jr."]
[Black "Jaferian, Koosha"]
[WhiteFideId "773654"]
[BlackFideId "12507440"]
[WhiteElo "2168"]
[BlackElo "2107"]
[Result "0-1"]
[Round "06"]
[TimeControl "180+2"]
[Date "2023.03.21"]
[WhiteClock "0:00:01"]
[BlackClock "0:00:43"]

1. e4 {[%clk 0:03:00]}  e6 {[%clk 0:02:59]} 2. d4 {[%clk 0:03:00]}  d5 {[%clk 0:02:59]} 3. Nc3 {[%clk 0:03:01]}  Nf6 {[%clk 0:02:58]} 4. e5 {[%clk 0:03:01]}  Nfd7 {[%clk 0:02:58]} 5. f4 {[%clk 0:03:02]}  c5 {[%clk 0:02:59]} 6. Nf3 {[%clk 0:03:02]}  Nc6 {[%clk 0:03:00]} 7. Be3 {[%clk 0:03:03]}  a6 {[%clk 0:02:58]} 8. Qd2 {[%clk 0:03:02]}  b5 {[%clk 0:02:57]} 9. Nd1 {[%clk 0:03:02]}  Qb6 {[%clk 0:02:53]} 10. c3 {[%clk 0:03:01]}  c4 {[%clk 0:02:53]} 11. Be2 {[%clk 0:03:00]}  b4 {[%clk 0:02:53]} 12. O-O {[%clk 0:02:57]}  g6 {[%clk 0:02:52]} 13. h3 {[%clk 0:02:48]}  a5 {[%clk 0:02:51]} 14. Bf2 {[%clk 0:02:47]}  Be7 {[%clk 0:02:49]} 15. Kh1 {[%clk 0:02:42]}  Ba6 {[%clk 0:02:48]} 16. g4 {[%clk 0:02:37]}  O-O-O {[%clk 0:02:47]} 17. Ne3 {[%clk 0:02:10]}  h5 {[%clk 0:02:35]} 18. g5 {[%clk 0:02:04]}  Kb7 {[%clk 0:02:31]} 19. h4 {[%clk 0:02:01]}  Ka7 {[%clk 0:02:31]} 20. Rfb1 {[%clk 0:01:56]}  Rb8 {[%clk 0:02:30]} 21. Qc2 {[%clk 0:01:49]}  Rb7 {[%clk 0:02:28]} 22. a3 {[%clk 0:01:42]}  bxa3 {[%clk 0:02:15]} 23. bxa3 {[%clk 0:01:41]}  Qc7 {[%clk 0:02:16]} 24. Rxb7+ {[%clk 0:01:38]}  Qxb7 {[%clk 0:02:16]} 25. Rb1 {[%clk 0:01:38]}  Qc7 {[%clk 0:02:16]} 26. a4 {[%clk 0:01:30]}  Rb8 {[%clk 0:02:16]} 27. Nd2 {[%clk 0:01:25]}  Rxb1+ {[%clk 0:02:09]} 28. Qxb1 {[%clk 0:01:24]}  Nb6 {[%clk 0:02:09]} 29. Qa2 {[%clk 0:01:19]}  Bc8 {[%clk 0:02:09]} 30. Nexc4 {[%clk 0:01:08]}  dxc4 {[%clk 0:02:05]} 31. Nxc4 {[%clk 0:01:08]}  Nd5 {[%clk 0:01:58]} 32. Qb3 {[%clk 0:00:40]}  Qb7 {[%clk 0:01:46]} 33. Qb5 {[%clk 0:00:29]}  Bd8 {[%clk 0:01:32]} 34. Bf3 {[%clk 0:00:26]}  Qxb5 {[%clk 0:01:21]} 35. axb5 {[%clk 0:00:26]}  Nce7 {[%clk 0:01:22]} 36. Nd6 {[%clk 0:00:23]}  a4 {[%clk 0:01:17]} 37. Bd1 {[%clk 0:00:10]}  Nxc3 {[%clk 0:01:05]} 38. d5+ {[%clk 0:00:04]}  Bb6 {[%clk 0:01:05]} 39. Bxb6+ {[%clk 0:00:02]}  Kxb6 {[%clk 0:01:06]} 40. Bc2 {[%clk 0:00:01]}  a3 {[%clk 0:01:00]} 41. Bb3 {[%clk 0:00:01]}  Nexd5 {[%clk 0:00:43]} 0-1


[Site "https://www.chess.com"]

[Event "Titled Tuesday Blitz March 21 Late 2023"]
[White "Bitoon, Richard"]
[Black "marik_spb"]
[WhiteFideId "5201110"]
[WhiteElo "2374"]
[BlackElo "2419"]
[Result "1-0"]
[Round "06"]
[TimeControl "180+2"]
[Date "2023.03.21"]
[WhiteClock "0:00:15"]
[BlackClock "0:00:02"]

1. e4 {[%clk 0:02:59]}  c6 {[%clk 0:02:54]} 2. d4 {[%clk 0:02:59]}  d5 {[%clk 0:02:54]} 3. Nc3 {[%clk 0:03:00]}  dxe4 {[%clk 0:02:53]} 4. Nxe4 {[%clk 0:03:01]}  Nf6 {[%clk 0:02:54]} 5. Nxf6+ {[%clk 0:03:02]}  exf6 {[%clk 0:02:55]} 6. c3 {[%clk 0:03:03]}  Bd6 {[%clk 0:02:54]} 7. Bd3 {[%clk 0:03:03]}  Na6 {[%clk 0:02:55]} 8. Qc2 {[%clk 0:03:04]}  Nc7 {[%clk 0:02:54]} 9. Ne2 {[%clk 0:02:58]}  h5 {[%clk 0:02:53]} 10. Bf5 {[%clk 0:02:54]}  Bxf5 {[%clk 0:02:43]} 11. Qxf5 {[%clk 0:02:55]}  g6 {[%clk 0:02:43]} 12. Qh3 {[%clk 0:02:54]}  Qe7 {[%clk 0:02:36]} 13. Bd2 {[%clk 0:02:53]}  Kf8 {[%clk 0:02:34]} 14. Qe3 {[%clk 0:02:42]}  Qe6 {[%clk 0:02:16]} 15. O-O {[%clk 0:02:38]}  Re8 {[%clk 0:02:13]} 16. Qxe6 {[%clk 0:02:25]}  fxe6 {[%clk 0:02:14]} 17. c4 {[%clk 0:02:24]}  Kf7 {[%clk 0:02:08]} 18. Bc3 {[%clk 0:02:23]}  e5 {[%clk 0:01:46]} 19. dxe5 {[%clk 0:02:20]}  Bxe5 {[%clk 0:01:46]} 20. Bxe5 {[%clk 0:01:32]}  Rxe5 {[%clk 0:01:47]} 21. Nc3 {[%clk 0:01:28]}  Rhe8 {[%clk 0:01:32]} 22. Rad1 {[%clk 0:01:28]}  R8e7 {[%clk 0:01:32]} 23. f3 {[%clk 0:01:21]}  Ne6 {[%clk 0:00:54]} 24. Ne4 {[%clk 0:01:18]}  Nf4 {[%clk 0:00:26]} 25. Nd6+ {[%clk 0:01:10]}  Kg7 {[%clk 0:00:26]} 26. g3 {[%clk 0:01:06]}  Nh3+ {[%clk 0:00:26]} 27. Kg2 {[%clk 0:01:06]}  Ng5 {[%clk 0:00:26]} 28. Nc8 {[%clk 0:01:02]}  Re2+ {[%clk 0:00:25]} 29. Rf2 {[%clk 0:01:02]}  Rxf2+ {[%clk 0:00:16]} 30. Kxf2 {[%clk 0:01:02]}  Rc7 {[%clk 0:00:15]} 31. Rd8 {[%clk 0:00:53]}  Nf7 {[%clk 0:00:14]} 32. Re8 {[%clk 0:00:52]}  Ne5 {[%clk 0:00:14]} 33. b3 {[%clk 0:00:45]}  Rd7 {[%clk 0:00:14]} 34. Nxa7 {[%clk 0:00:40]}  Kf7 {[%clk 0:00:14]} 35. Rb8 {[%clk 0:00:40]}  Nd3+ {[%clk 0:00:14]} 36. Kf1 {[%clk 0:00:38]}  Nc1 {[%clk 0:00:14]} 37. Nc8 {[%clk 0:00:37]}  Nxa2 {[%clk 0:00:14]} 38. Rxb7 {[%clk 0:00:37]}  Rxb7 {[%clk 0:00:13]} 39. Nd6+ {[%clk 0:00:37]}  Ke6 {[%clk 0:00:12]} 40. Nxb7 {[%clk 0:00:38]}  Ke5 {[%clk 0:00:12]} 41. Na5 {[%clk 0:00:30]}  c5 {[%clk 0:00:12]} 42. Ke2 {[%clk 0:00:30]}  Nb4 {[%clk 0:00:09]} 43. Nb7 {[%clk 0:00:23]}  Kd4 {[%clk 0:00:08]} 44. Kd2 {[%clk 0:00:22]}  Nd3 {[%clk 0:00:09]} 45. Nd8 {[%clk 0:00:17]}  Nb4 {[%clk 0:00:03]} 46. Ne6+ {[%clk 0:00:14]}  Ke5 {[%clk 0:00:03]} 47. Nxc5 {[%clk 0:00:15]}  Nc6 {[%clk 0:00:03]} 48. Ke3 {[%clk 0:00:14]}  Kd6 {[%clk 0:00:02]} 49. Ne4+ {[%clk 0:00:14]}  Ke6 {[%clk 0:00:03]} 50. Nc5+ {[%clk 0:00:15]}  Kd6 {[%clk 0:00:03]} 51. Nd3 {[%clk 0:00:16]}  f5 {[%clk 0:00:01]} 52. b4 {[%clk 0:00:16]}  Ke6 {[%clk 0:00:02]} 53. b5 {[%clk 0:00:16]}  Na5 {[%clk 0:00:02]} 54. Nf4+ {[%clk 0:00:15]}  Kf6 {[%clk 0:00:02]} 55. c5 {[%clk 0:00:15]}  Nc4+ {[%clk 0:00:02]} 56. Kd4 {[%clk 0:00:16]}  Ne5 {[%clk 0:00:03]} 57. Nd5+ {[%clk 0:00:16]}  Ke6 {[%clk 0:00:03]} 58. Nc7+ {[%clk 0:00:16]}  Kf6 {[%clk 0:00:03]} 59. f4 {[%clk 0:00:15]}  Nf3+ {[%clk 0:00:02]} 60. Kd5 {[%clk 0:00:15]}  g5 {[%clk 0:00:02]} 61. b6 {[%clk 0:00:13]}  h4 {[%clk 0:00:02]} 62. fxg5+ {[%clk 0:00:13]}  Kxg5 {[%clk 0:00:02]} 63. Ne6+ {[%clk 0:00:14]}  Kf6 {[%clk 0:00:02]} 64. b7 {[%clk 0:00:14]}  Nxh2 {[%clk 0:00:02]} 65. b8=Q {[%clk 0:00:13]}  hxg3 {[%clk 0:00:03]} 66. Qh8+ {[%clk 0:00:13]}  Kf7 {[%clk 0:00:02]} 67. Qg7+ {[%clk 0:00:13]}  Ke8 {[%clk 0:00:02]} 68. Qf8+ {[%clk 0:00:14]}  Kd7 {[%clk 0:00:02]} 69. Qd8# {[%clk 0:00:15]} 1-0


[Site "https://www.chess.com"]

[Event "Titled Tuesday Blitz March 21 Late 2023"]
[White "Rottenwohrer Suarez, Juan"]
[Black "Panesso Rivera, Henry"]
[WhiteFideId "32068182"]
[BlackFideId "4402707"]
[WhiteElo "2174"]
[BlackElo "2345"]
[Result "1-0"]
[Round "06"]
[TimeControl "180+2"]
[Date "2023.03.21"]
[WhiteClock "0:00:07"]
[BlackClock "0:00:08"]

1. c4 {[%clk 0:03:00]}  e5 {[%clk 0:02:59]} 2. g3 {[%clk 0:03:00]}  Nf6 {[%clk 0:02:58]} 3. Bg2 {[%clk 0:03:01]}  c6 {[%clk 0:02:52]} 4. d4 {[%clk 0:03:00]}  exd4 {[%clk 0:02:51]} 5. Qxd4 {[%clk 0:03:01]}  Na6 {[%clk 0:02:51]} 6. Nf3 {[%clk 0:02:41]}  Bc5 {[%clk 0:02:50]} 7. Qe5+ {[%clk 0:02:40]}  Be7 {[%clk 0:02:49]} 8. O-O {[%clk 0:02:34]}  O-O {[%clk 0:02:49]} 9. Rd1 {[%clk 0:02:31]}  Re8 {[%clk 0:02:47]} 10. Qc3 {[%clk 0:02:25]}  Ne4 {[%clk 0:02:39]} 11. Qc2 {[%clk 0:02:24]}  Bf6 {[%clk 0:02:38]} 12. a3 {[%clk 0:02:18]}  Qb6 {[%clk 0:02:27]} 13. e3 {[%clk 0:02:08]}  Nac5 {[%clk 0:01:56]} 14. Nbd2 {[%clk 0:02:04]}  d5 {[%clk 0:01:51]} 15. cxd5 {[%clk 0:01:49]}  Bf5 {[%clk 0:01:43]} 16. Nd4 {[%clk 0:01:31]}  Bxd4 {[%clk 0:00:33]} 17. exd4 {[%clk 0:01:32]}  Nxf2 {[%clk 0:00:34]} 18. Qxf5 {[%clk 0:01:12]}  Nxd1 {[%clk 0:00:33]} 19. Nc4 {[%clk 0:01:12]}  Re1+ {[%clk 0:00:31]} 20. Bf1 {[%clk 0:01:13]}  Qb3 {[%clk 0:00:24]} 21. Bd2 {[%clk 0:01:06]}  Qxc4 {[%clk 0:00:11]} 22. Bxe1 {[%clk 0:00:46]}  Qxd4+ {[%clk 0:00:11]} 23. Bf2 {[%clk 0:00:47]}  Nxf2 {[%clk 0:00:11]} 24. Qxf2 {[%clk 0:00:47]}  Qxf2+ {[%clk 0:00:10]} 25. Kxf2 {[%clk 0:00:48]}  cxd5 {[%clk 0:00:11]} 26. Rd1 {[%clk 0:00:47]}  Ne4+ {[%clk 0:00:11]} 27. Ke3 {[%clk 0:00:47]}  Nf6 {[%clk 0:00:11]} 28. Bg2 {[%clk 0:00:43]}  Rd8 {[%clk 0:00:12]} 29. Kd4 {[%clk 0:00:43]}  Kf8 {[%clk 0:00:12]} 30. Rc1 {[%clk 0:00:43]}  Rd7 {[%clk 0:00:12]} 31. Rc8+ {[%clk 0:00:42]}  Ke7 {[%clk 0:00:12]} 32. b4 {[%clk 0:00:39]}  a6 {[%clk 0:00:12]} 33. a4 {[%clk 0:00:39]}  h5 {[%clk 0:00:12]} 34. h3 {[%clk 0:00:36]}  g5 {[%clk 0:00:12]} 35. b5 {[%clk 0:00:33]}  axb5 {[%clk 0:00:12]} 36. axb5 {[%clk 0:00:34]}  Kd6 {[%clk 0:00:11]} 37. Rc5 {[%clk 0:00:26]}  g4 {[%clk 0:00:11]} 38. h4 {[%clk 0:00:22]}  Ke7 {[%clk 0:00:11]} 39. b6 {[%clk 0:00:17]}  Rd6 {[%clk 0:00:10]} 40. Rc7+ {[%clk 0:00:17]}  Nd7 {[%clk 0:00:05]} 41. Bxd5 {[%clk 0:00:13]}  Rxb6 {[%clk 0:00:05]} 42. Bxb7 {[%clk 0:00:09]}  Rd6+ {[%clk 0:00:04]} 43. Ke4 {[%clk 0:00:07]}  Kd8 {[%clk 0:00:05]} 44. Rc8+ {[%clk 0:00:06]}  Ke7 {[%clk 0:00:05]} 45. Kf5 {[%clk 0:00:07]}  Rf6+ {[%clk 0:00:05]} 46. Kg5 {[%clk 0:00:06]}  Rb6 {[%clk 0:00:05]} 47. Rc7 {[%clk 0:00:06]}  Rb5+ {[%clk 0:00:06]} 48. Kh6 {[%clk 0:00:06]}  Kd6 {[%clk 0:00:06]} 49. Rc6+ {[%clk 0:00:06]}  Ke7 {[%clk 0:00:07]} 50. Rc7 {[%clk 0:00:07]}  Rb6+ {[%clk 0:00:07]} 51. Bc6 {[%clk 0:00:06]}  Kd6 {[%clk 0:00:03]} 52. Rxd7+ {[%clk 0:00:06]}  Kxc6 {[%clk 0:00:03]} 53. Rxf7 {[%clk 0:00:07]}  Kd5+ {[%clk 0:00:04]} 54. Kxh5 {[%clk 0:00:07]}  Rb3 {[%clk 0:00:04]} 55. Kxg4 {[%clk 0:00:06]}  Ke6 {[%clk 0:00:05]} 56. Rf4 {[%clk 0:00:06]}  Rb8 {[%clk 0:00:05]} 57. h5 {[%clk 0:00:06]}  Rg8+ {[%clk 0:00:06]} 58. Kh4 {[%clk 0:00:07]}  Ra8 {[%clk 0:00:07]} 59. g4 {[%clk 0:00:07]}  Ra1 {[%clk 0:00:07]} 60. Rf5 {[%clk 0:00:06]}  Rh1+ {[%clk 0:00:07]} 61. Kg5 {[%clk 0:00:07]}  Rg1 {[%clk 0:00:08]} 62. h6 {[%clk 0:00:07]}  Ke7 {[%clk 0:00:09]} 63. Rf4 {[%clk 0:00:07]}  Rh1 {[%clk 0:00:10]} 64. Kg6 {[%clk 0:00:07]}  Ra1 {[%clk 0:00:09]} 65. g5 {[%clk 0:00:07]}  Ra6+ {[%clk 0:00:10]} 66. Kg7 {[%clk 0:00:07]}  Ra5 {[%clk 0:00:10]} 67. g6 {[%clk 0:00:07]}  Ke6 {[%clk 0:00:10]} 68. Rf7 {[%clk 0:00:06]}  Ra1 {[%clk 0:00:08]} 69. h7 {[%clk 0:00:07]} 1-0


[Site "https://www.chess.com"]

[Event "Titled Tuesday Blitz March 21 Late 2023"]
[White "Toniutti, Ezio"]
[Black "Kovalevsky, Stanislav"]
[WhiteFideId "113034"]
[BlackFideId "13508598"]
[WhiteElo "2215"]
[BlackElo "2174"]
[Result "0-1"]
[Round "06"]
[TimeControl "180+2"]
[Date "2023.03.21"]
[WhiteClock "0:00:05"]
[BlackClock "0:00:07"]

1. d4 {[%clk 0:02:57]}  d5 {[%clk 0:03:00]} 2. c4 {[%clk 0:02:57]}  c6 {[%clk 0:02:58]} 3. Nc3 {[%clk 0:02:57]}  Nf6 {[%clk 0:02:59]} 4. e3 {[%clk 0:02:57]}  e6 {[%clk 0:02:56]} 5. Nf3 {[%clk 0:02:57]}  Nbd7 {[%clk 0:02:56]} 6. Bd3 {[%clk 0:02:57]}  Bd6 {[%clk 0:02:55]} 7. e4 {[%clk 0:02:55]}  dxe4 {[%clk 0:02:53]} 8. Nxe4 {[%clk 0:02:56]}  Nxe4 {[%clk 0:02:52]} 9. Bxe4 {[%clk 0:02:56]}  f5 {[%clk 0:02:22]} 10. Bc2 {[%clk 0:02:54]}  O-O {[%clk 0:02:23]} 11. O-O {[%clk 0:02:54]}  e5 {[%clk 0:02:23]} 12. c5 {[%clk 0:02:52]}  Bc7 {[%clk 0:02:22]} 13. dxe5 {[%clk 0:02:52]}  Nxe5 {[%clk 0:02:22]} 14. Re1 {[%clk 0:02:37]}  Qxd1 {[%clk 0:01:59]} 15. Bxd1 {[%clk 0:02:36]}  Nd3 {[%clk 0:01:56]} 16. Re2 {[%clk 0:02:11]}  Nxc5 {[%clk 0:01:51]} 17. Be3 {[%clk 0:02:12]}  Ne4 {[%clk 0:01:46]} 18. Nd4 {[%clk 0:02:06]}  Bd7 {[%clk 0:01:36]} 19. Bb3+ {[%clk 0:02:01]}  Kh8 {[%clk 0:01:35]} 20. Rd1 {[%clk 0:01:56]}  Rad8 {[%clk 0:01:33]} 21. f3 {[%clk 0:01:55]}  Nf6 {[%clk 0:01:04]} 22. Red2 {[%clk 0:01:51]}  Bc8 {[%clk 0:01:02]} 23. Bg5 {[%clk 0:01:46]}  h6 {[%clk 0:00:59]} 24. Bh4 {[%clk 0:01:42]}  Bb6 {[%clk 0:00:57]} 25. Kf1 {[%clk 0:01:37]}  g5 {[%clk 0:00:53]} 26. Bg3 {[%clk 0:01:34]}  Nd5 {[%clk 0:00:49]} 27. Be5+ {[%clk 0:01:26]}  Kh7 {[%clk 0:00:48]} 28. Nc2 {[%clk 0:01:08]}  Be6 {[%clk 0:00:32]} 29. Bg3 {[%clk 0:00:50]}  Ne3+ {[%clk 0:00:19]} 30. Nxe3 {[%clk 0:00:49]}  Bxb3 {[%clk 0:00:19]} 31. Rxd8 {[%clk 0:00:44]}  Rxd8 {[%clk 0:00:19]} 32. Rxd8 {[%clk 0:00:44]}  Bxd8 {[%clk 0:00:20]} 33. axb3 {[%clk 0:00:33]}  f4 {[%clk 0:00:20]} 34. Bf2 {[%clk 0:00:34]}  fxe3 {[%clk 0:00:17]} 35. Bxe3 {[%clk 0:00:34]}  a6 {[%clk 0:00:17]} 36. Ke2 {[%clk 0:00:34]}  Bf6 {[%clk 0:00:17]} 37. Bc1 {[%clk 0:00:33]}  Kg6 {[%clk 0:00:18]} 38. Kd3 {[%clk 0:00:33]}  Kf5 {[%clk 0:00:18]} 39. g3 {[%clk 0:00:33]}  Ke6 {[%clk 0:00:18]} 40. b4 {[%clk 0:00:33]}  b5 {[%clk 0:00:18]} 41. b3 {[%clk 0:00:32]}  Kd5 {[%clk 0:00:18]} 42. f4 {[%clk 0:00:31]}  g4 {[%clk 0:00:17]} 43. Be3 {[%clk 0:00:27]}  h5 {[%clk 0:00:17]} 44. Bd2 {[%clk 0:00:26]}  Bd4 {[%clk 0:00:16]} 45. Bc3 {[%clk 0:00:20]}  Bg1 {[%clk 0:00:14]} 46. f5 {[%clk 0:00:20]}  Bxh2 {[%clk 0:00:14]} 47. f6 {[%clk 0:00:19]}  Ke6 {[%clk 0:00:14]} 48. Be1 {[%clk 0:00:11]}  h4 {[%clk 0:00:07]} 49. gxh4 {[%clk 0:00:11]}  g3 {[%clk 0:00:08]} 50. Kd4 {[%clk 0:00:08]}  g2 {[%clk 0:00:07]} 51. Bf2 {[%clk 0:00:08]}  g1=Q {[%clk 0:00:06]} 52. Bxg1 {[%clk 0:00:08]}  Bxg1+ {[%clk 0:00:07]} 53. Ke4 {[%clk 0:00:08]}  Kxf6 {[%clk 0:00:07]} 54. h5 {[%clk 0:00:07]}  Bh2 {[%clk 0:00:07]} 55. Kd4 {[%clk 0:00:06]}  Bd6 {[%clk 0:00:07]} 56. Ke4 {[%clk 0:00:05]}  Bxb4 {[%clk 0:00:07]} 0-1


[Site "https://www.chess.com"]

[Event "Titled Tuesday Blitz March 21 Late 2023"]
[White "Rios Escobar, Adan"]
[Black "Pinheiro, Iung Alicio de O."]
[WhiteFideId "3403645"]
[BlackFideId "2104350"]
[WhiteElo "2403"]
[BlackElo "2283"]
[Result "1-0"]
[Round "06"]
[TimeControl "180+2"]
[Date "2023.03.21"]
[WhiteClock "0:00:11"]
[BlackClock "0:00:06"]

1. d4 {[%clk 0:02:55]}  Nf6 {[%clk 0:02:59]} 2. g3 {[%clk 0:02:55]}  g6 {[%clk 0:02:59]} 3. Bg2 {[%clk 0:02:55]}  d5 {[%clk 0:02:48]} 4. c4 {[%clk 0:02:54]}  dxc4 {[%clk 0:02:36]} 5. Nf3 {[%clk 0:02:54]}  Bg7 {[%clk 0:02:35]} 6. O-O {[%clk 0:02:54]}  O-O {[%clk 0:02:36]} 7. Na3 {[%clk 0:02:54]}  c3 {[%clk 0:02:36]} 8. bxc3 {[%clk 0:02:54]}  c5 {[%clk 0:02:37]} 9. Nc4 {[%clk 0:02:47]}  Nc6 {[%clk 0:02:36]} 10. Bb2 {[%clk 0:02:45]}  Bf5 {[%clk 0:02:34]} 11. Qb3 {[%clk 0:02:30]}  Be4 {[%clk 0:02:20]} 12. Rfd1 {[%clk 0:02:20]}  Qd5 {[%clk 0:01:39]} 13. dxc5 {[%clk 0:02:09]}  Qxc5 {[%clk 0:01:34]} 14. Ba3 {[%clk 0:02:01]}  Qh5 {[%clk 0:01:32]} 15. Ncd2 {[%clk 0:01:58]}  Bd5 {[%clk 0:01:27]} 16. c4 {[%clk 0:01:58]}  Be6 {[%clk 0:01:14]} 17. Qxb7 {[%clk 0:01:55]}  Rfc8 {[%clk 0:01:12]} 18. Qb5 {[%clk 0:01:27]}  Na5 {[%clk 0:00:41]} 19. Bxe7 {[%clk 0:01:05]}  Nxc4 {[%clk 0:00:36]} 20. Qxh5 {[%clk 0:00:46]}  Nxh5 {[%clk 0:00:37]} 21. Rac1 {[%clk 0:00:37]}  Nb2 {[%clk 0:00:34]} 22. Re1 {[%clk 0:00:24]}  Bxa2 {[%clk 0:00:31]} 23. Ne4 {[%clk 0:00:16]}  Rab8 {[%clk 0:00:28]} 24. Nd6 {[%clk 0:00:15]}  Rxc1 {[%clk 0:00:27]} 25. Rxc1 {[%clk 0:00:15]}  Be6 {[%clk 0:00:25]} 26. Ng5 {[%clk 0:00:14]}  Bd7 {[%clk 0:00:20]} 27. Ngxf7 {[%clk 0:00:13]}  a5 {[%clk 0:00:19]} 28. Bd5 {[%clk 0:00:12]}  Nf6 {[%clk 0:00:18]} 29. Ba2 {[%clk 0:00:11]}  a4 {[%clk 0:00:17]} 30. Ne5+ {[%clk 0:00:11]}  Kh8 {[%clk 0:00:16]} 31. Ndf7+ {[%clk 0:00:10]}  Kg8 {[%clk 0:00:16]} 32. Nh6+ {[%clk 0:00:10]}  Kh8 {[%clk 0:00:06]} 33. Nef7# {[%clk 0:00:11]} 1-0


[Site "https://www.chess.com"]

[Event "Titled Tuesday Blitz March 21 Late 2023"]
[White "Meunier-Pion, Jean"]
[Black "Poliakova, Varvara"]
[WhiteFideId "20685327"]
[BlackFideId "13518313"]
[WhiteElo "2124"]
[BlackElo "2075"]
[Result "0-1"]
[Round "06"]
[TimeControl "180+2"]
[Date "2023.03.21"]
[WhiteClock "0:00:01"]
[BlackClock "0:00:12"]

1. e4 {[%clk 0:03:00]}  e5 {[%clk 0:02:58]} 2. Nf3 {[%clk 0:03:00]}  Nc6 {[%clk 0:02:58]} 3. Bb5 {[%clk 0:03:00]}  a6 {[%clk 0:02:58]} 4. Ba4 {[%clk 0:03:00]}  Nf6 {[%clk 0:02:58]} 5. d3 {[%clk 0:03:00]}  d6 {[%clk 0:02:57]} 6. c3 {[%clk 0:03:00]}  g6 {[%clk 0:02:57]} 7. O-O {[%clk 0:02:59]}  Bg7 {[%clk 0:02:58]} 8. Nbd2 {[%clk 0:02:57]}  O-O {[%clk 0:02:58]} 9. Re1 {[%clk 0:02:56]}  Nh5 {[%clk 0:02:57]} 10. Nf1 {[%clk 0:02:55]}  f5 {[%clk 0:02:55]} 11. exf5 {[%clk 0:02:53]}  Bxf5 {[%clk 0:02:55]} 12. Bb3+ {[%clk 0:02:48]}  Kh8 {[%clk 0:02:54]} 13. Ng3 {[%clk 0:02:45]}  Nxg3 {[%clk 0:02:53]} 14. hxg3 {[%clk 0:02:44]}  Bg4 {[%clk 0:02:53]} 15. Re4 {[%clk 0:02:39]}  Qd7 {[%clk 0:02:49]} 16. Bg5 {[%clk 0:01:42]}  Rae8 {[%clk 0:02:48]} 17. Qd2 {[%clk 0:01:27]}  Bxf3 {[%clk 0:02:40]} 18. gxf3 {[%clk 0:01:27]}  Rxf3 {[%clk 0:02:41]} 19. Kg2 {[%clk 0:01:28]}  Ref8 {[%clk 0:02:41]} 20. Rh1 {[%clk 0:01:14]}  Rxf2+ {[%clk 0:02:34]} 21. Qxf2 {[%clk 0:01:15]}  Rxf2+ {[%clk 0:02:34]} 22. Kxf2 {[%clk 0:01:15]}  Qf5+ {[%clk 0:02:35]} 23. Bf4 {[%clk 0:01:00]}  exf4 {[%clk 0:02:36]} 24. Re8+ {[%clk 0:00:59]}  Bf8 {[%clk 0:02:33]} 25. g4 {[%clk 0:00:54]}  Qf6 {[%clk 0:02:28]} 26. g5 {[%clk 0:00:54]}  Qg7 {[%clk 0:02:11]} 27. d4 {[%clk 0:00:44]}  Ne7 {[%clk 0:02:03]} 28. Rh4 {[%clk 0:00:44]}  Nf5 {[%clk 0:01:53]} 29. Rxf4 {[%clk 0:00:39]}  c6 {[%clk 0:01:53]} 30. Be6 {[%clk 0:00:38]}  d5 {[%clk 0:01:44]} 31. Kf3 {[%clk 0:00:27]}  h6 {[%clk 0:01:29]} 32. gxh6 {[%clk 0:00:27]}  Qxh6 {[%clk 0:01:29]} 33. Bxf5 {[%clk 0:00:28]}  Qh1+ {[%clk 0:01:28]} 34. Kf2 {[%clk 0:00:18]}  Kg7 {[%clk 0:01:24]} 35. Be6 {[%clk 0:00:17]}  Qh2+ {[%clk 0:00:58]} 36. Kf3 {[%clk 0:00:17]}  Qh5+ {[%clk 0:00:56]} 37. Kf2 {[%clk 0:00:13]}  Qh2+ {[%clk 0:00:41]} 38. Kf3 {[%clk 0:00:06]}  Qxb2 {[%clk 0:00:37]} 39. Rexf8 {[%clk 0:00:04]}  Qxc3+ {[%clk 0:00:37]} 40. Kg4 {[%clk 0:00:05]}  g5 {[%clk 0:00:15]} 41. R4f7+ {[%clk 0:00:05]}  Kh6 {[%clk 0:00:14]} 42. Rh8+ {[%clk 0:00:03]}  Kg6 {[%clk 0:00:13]} 43. Rg8+ {[%clk 0:00:03]}  Kh6 {[%clk 0:00:12]} 44. Rh8+ {[%clk 0:00:02]}  Kg6 {[%clk 0:00:12]} 45. Rg8+ {[%clk 0:00:01]}  Kh6 {[%clk 0:00:13]} 46. Rgf8 {[%clk 0:00:01]}  Qxd4+ {[%clk 0:00:12]} 0-1


[Site "https://www.chess.com"]

[Event "Titled Tuesday Blitz March 21 Late 2023"]
[White "Mortazavi, Ali"]
[Black "Beulen, Marcel"]
[WhiteFideId "401323"]
[BlackFideId "1001450"]
[WhiteElo "2339"]
[BlackElo "2399"]
[Result "1-0"]
[Round "06"]
[TimeControl "180+2"]
[Date "2023.03.21"]
[WhiteClock "0:00:31"]
[BlackClock "0:01:12"]

1. e4 {[%clk 0:03:00]}  d5 {[%clk 0:02:59]} 2. Nc3 {[%clk 0:02:58]}  dxe4 {[%clk 0:02:59]} 3. f3 {[%clk 0:02:58]}  exf3 {[%clk 0:02:57]} 4. Nxf3 {[%clk 0:02:58]}  Nf6 {[%clk 0:02:56]} 5. Bc4 {[%clk 0:02:58]}  e6 {[%clk 0:02:56]} 6. d4 {[%clk 0:02:56]}  Be7 {[%clk 0:02:56]} 7. O-O {[%clk 0:02:57]}  O-O {[%clk 0:02:56]} 8. Kh1 {[%clk 0:02:52]}  c5 {[%clk 0:02:53]} 9. Be3 {[%clk 0:02:47]}  cxd4 {[%clk 0:02:52]} 10. Nxd4 {[%clk 0:02:47]}  Nc6 {[%clk 0:02:49]} 11. Nxc6 {[%clk 0:02:46]}  bxc6 {[%clk 0:02:49]} 12. Qf3 {[%clk 0:02:44]}  Nd5 {[%clk 0:02:38]} 13. Rad1 {[%clk 0:02:36]}  Qc7 {[%clk 0:02:37]} 14. Bd4 {[%clk 0:02:32]}  Bb7 {[%clk 0:02:20]} 15. Rde1 {[%clk 0:02:09]}  c5 {[%clk 0:02:10]} 16. Be5 {[%clk 0:02:09]}  Bd6 {[%clk 0:02:10]} 17. Nb5 {[%clk 0:02:05]}  Bxe5 {[%clk 0:02:04]} 18. Nxc7 {[%clk 0:02:03]}  Bxc7 {[%clk 0:02:05]} 19. Bd3 {[%clk 0:01:47]}  Rab8 {[%clk 0:02:01]} 20. Qh3 {[%clk 0:01:45]}  g6 {[%clk 0:02:01]} 21. Bc4 {[%clk 0:01:38]}  Nf4 {[%clk 0:01:56]} 22. Rxf4 {[%clk 0:01:34]}  Bxf4 {[%clk 0:01:57]} 23. Qg4 {[%clk 0:01:25]}  Bh6 {[%clk 0:01:48]} 24. h4 {[%clk 0:01:20]}  Bg7 {[%clk 0:01:48]} 25. h5 {[%clk 0:01:18]}  Rfd8 {[%clk 0:01:40]} 26. hxg6 {[%clk 0:01:18]}  hxg6 {[%clk 0:01:40]} 27. Bd3 {[%clk 0:01:14]}  Rd4 {[%clk 0:01:37]} 28. Qg3 {[%clk 0:01:11]}  Rbd8 {[%clk 0:01:36]} 29. b3 {[%clk 0:01:10]}  e5 {[%clk 0:01:28]} 30. Bc4 {[%clk 0:00:57]}  Rd2 {[%clk 0:01:24]} 31. Qxg6 {[%clk 0:00:42]}  Rxg2 {[%clk 0:01:19]} 32. Qxf7+ {[%clk 0:00:42]}  Kh7 {[%clk 0:01:14]} 33. Qxb7 {[%clk 0:00:31]}  Rdd2 {[%clk 0:01:12]} 34. Qxg2 {[%clk 0:00:30]}  Rxg2 {[%clk 0:01:12]} 35. Kxg2 {[%clk 0:00:31]} 1-0


[Site "https://www.chess.com"]